[Event "Early-Titled-Tuesday-Blitz-March-26-2024"]
[Site "Chess.com"]
[Date "2024.03.26"]
[Round "7"]
[White "kritipatel"]
[Black "gummigisla"]
[Result "0-1"]
[WhiteElo "2204"]
[BlackElo "2431"]
[TimeControl "180+1"]
[EndTime "9:10:33 PDT"]
[Termination "gummigisla won by checkmate"]

1. e4 {[%clk 0:02:49]} 1... c5 {[%clk 0:02:58.8]} 2. d4 {[%clk 0:02:48.7]} 2...
cxd4 {[%clk 0:02:57.2]} 3. c3 {[%clk 0:02:49.4]} 3... d3 {[%clk 0:02:57.4]} 4.
Bxd3 {[%clk 0:02:49.1]} 4... g6 {[%clk 0:02:57.3]} 5. c4 {[%clk 0:02:48.9]} 5...
Bg7 {[%clk 0:02:57.7]} 6. Nc3 {[%clk 0:02:49.5]} 6... Nc6 {[%clk 0:02:57.2]} 7.
Nf3 {[%clk 0:02:50.2]} 7... d6 {[%clk 0:02:57.4]} 8. O-O {[%clk 0:02:50.9]} 8...
Nf6 {[%clk 0:02:56.9]} 9. Bf4 {[%clk 0:02:50.2]} 9... O-O {[%clk 0:02:55.7]} 10.
Qe2 {[%clk 0:02:50.7]} 10... Bg4 {[%clk 0:02:53.9]} 11. h3 {[%clk 0:02:46.9]}
11... Nd4 {[%clk 0:02:52.8]} 12. Qe3 {[%clk 0:02:39.9]} 12... Nxf3+ {[%clk
0:02:52.4]} 13. gxf3 {[%clk 0:02:40.8]} 13... Bxh3 {[%clk 0:02:52.1]} 14. Rfd1
{[%clk 0:02:39.9]} 14... Qa5 {[%clk 0:02:46.3]} 15. Nd5 {[%clk 0:02:34.7]} 15...
Nxd5 {[%clk 0:02:44.8]} 16. exd5 {[%clk 0:02:34.9]} 16... Rfe8 {[%clk
0:02:42.1]} 17. Kh2 {[%clk 0:02:29.5]} 17... Bd7 {[%clk 0:02:39.9]} 18. Bh6
{[%clk 0:02:26.8]} 18... e5 {[%clk 0:02:25.6]} 19. Rh1 {[%clk 0:02:20.5]} 19...
Qb6 {[%clk 0:02:12.2]} 20. Qd2 {[%clk 0:02:15.5]} 20... Bxh6 {[%clk 0:02:10.3]}
21. Qxh6 {[%clk 0:02:14.6]} 21... Qxf2# {[%clk 0:02:09.8]} 0-1

[Event "Early-Titled-Tuesday-Blitz-March-26-2024"]
[Site "Chess.com"]
[Date "2024.03.26"]
[Round "7"]
[White "The_Straightforward_Rook"]
[Black "ChessQueen"]
[Result "0-1"]
[WhiteElo "2407"]
[BlackElo "2719"]
[TimeControl "180+1"]
[EndTime "9:10:56 PDT"]
[Termination "ChessQueen won by resignation"]

1. e4 {[%clk 0:02:55.3]} 1... c6 {[%clk 0:03:00.3]} 2. Nc3 {[%clk 0:02:49.3]}
2... d5 {[%clk 0:03:01.2]} 3. Nf3 {[%clk 0:02:49.9]} 3... dxe4 {[%clk
0:03:01.5]} 4. Nxe4 {[%clk 0:02:50.8]} 4... Nf6 {[%clk 0:03:02.1]} 5. Qe2 {[%clk
0:02:50.6]} 5... Nxe4 {[%clk 0:03:02.2]} 6. Qxe4 {[%clk 0:02:51.5]} 6... Nd7
{[%clk 0:03:02.5]} 7. Bc4 {[%clk 0:02:48.9]} 7... Nf6 {[%clk 0:03:03]} 8. Ne5
{[%clk 0:02:48.6]} 8... e6 {[%clk 0:03:03.6]} 9. Qe2 {[%clk 0:02:47]} 9... b5
{[%clk 0:03:03.9]} 10. Bd3 {[%clk 0:02:44.9]} 10... Qc7 {[%clk 0:02:56.8]} 11.
Nxc6 {[%clk 0:02:38.2]} 11... Bb7 {[%clk 0:02:56.2]} 12. Nd4 {[%clk 0:02:31.8]}
12... a6 {[%clk 0:02:56.6]} 13. Nf3 {[%clk 0:02:28.8]} 13... Nd5 {[%clk
0:02:53.1]} 14. O-O {[%clk 0:02:14.6]} 14... Nf4 {[%clk 0:02:49.9]} 15. Qe5
{[%clk 0:01:53.3]} 15... Bd6 {[%clk 0:02:49.3]} 16. Qg5 {[%clk 0:01:50.7]} 16...
h6 {[%clk 0:02:43.9]} 17. Qh4 {[%clk 0:01:42.2]} 17... g5 {[%clk 0:02:39.5]} 18.
Nxg5 {[%clk 0:01:36.6]} 18... Nxg2 {[%clk 0:02:33.7]} 19. Be4 {[%clk 0:01:27.6]}
19... Nxh4 {[%clk 0:02:32.5]} 0-1

[Event "Early-Titled-Tuesday-Blitz-March-26-2024"]
[Site "Chess.com"]
[Date "2024.03.26"]
[Round "7"]
[White "Speed-O-Sonic"]
[Black "Knightmare1014"]
[Result "0-1"]
[WhiteElo "2449"]
[BlackElo "2331"]
[TimeControl "180+1"]
[EndTime "9:12:07 PDT"]
[Termination "Knightmare1014 won by resignation"]

1. e4 {[%clk 0:02:30.3]} 1... c5 {[%clk 0:02:57.7]} 2. Nc3 {[%clk 0:02:29.3]}
2... e6 {[%clk 0:02:57.6]} 3. Nge2 {[%clk 0:02:27.8]} 3... a6 {[%clk 0:02:55.8]}
4. g3 {[%clk 0:02:28.6]} 4... Nc6 {[%clk 0:02:53.6]} 5. d4 {[%clk 0:02:24.6]}
5... cxd4 {[%clk 0:02:53.4]} 6. Nxd4 {[%clk 0:02:25.5]} 6... Qc7 {[%clk
0:02:52.8]} 7. Bg2 {[%clk 0:02:23]} 7... Nf6 {[%clk 0:02:47.6]} 8. O-O {[%clk
0:02:22.7]} 8... b5 {[%clk 0:02:45.9]} 9. Bg5 {[%clk 0:02:16.4]} 9... Be7 {[%clk
0:02:45]} 10. e5 {[%clk 0:01:32.3]} 10... Ng8 {[%clk 0:02:39.3]} 11. Bxe7 {[%clk
0:01:28.3]} 11... Ngxe7 {[%clk 0:02:40.2]} 12. Ne4 {[%clk 0:01:25.6]} 12... O-O
{[%clk 0:02:32.1]} 13. f4 {[%clk 0:01:20.8]} 13... Nxd4 {[%clk 0:02:23.9]} 14.
Qxd4 {[%clk 0:01:16.4]} 14... Bb7 {[%clk 0:02:18.7]} 15. c3 {[%clk 0:00:33.7]}
15... Nf5 {[%clk 0:02:15.4]} 16. Rad1 {[%clk 0:00:31.4]} 16... Nxd4 {[%clk
0:02:14.9]} 0-1

[Event "Early-Titled-Tuesday-Blitz-March-26-2024"]
[Site "Chess.com"]
[Date "2024.03.26"]
[Round "7"]
[White "AlainBruxelles"]
[Black "AquivaRubinstein"]
[Result "0-1"]
[WhiteElo "2378"]
[BlackElo "2580"]
[TimeControl "180+1"]
[EndTime "9:12:08 PDT"]
[Termination "AquivaRubinstein won by resignation"]

1. e4 {[%clk 0:03:00.9]} 1... Nf6 {[%clk 0:02:56]} 2. e5 {[%clk 0:02:59.3]} 2...
Nd5 {[%clk 0:02:56.2]} 3. d4 {[%clk 0:03:00]} 3... d6 {[%clk 0:02:56.4]} 4. c4
{[%clk 0:03:00.2]} 4... Nb6 {[%clk 0:02:56.6]} 5. f4 {[%clk 0:03:00.6]} 5...
dxe5 {[%clk 0:02:55]} 6. fxe5 {[%clk 0:03:00.7]} 6... c5 {[%clk 0:02:55.7]} 7.
d5 {[%clk 0:02:58.7]} 7... e6 {[%clk 0:02:56.2]} 8. Nc3 {[%clk 0:02:57.8]} 8...
exd5 {[%clk 0:02:56.6]} 9. cxd5 {[%clk 0:02:58]} 9... c4 {[%clk 0:02:57.2]} 10.
Nf3 {[%clk 0:02:55.3]} 10... Bb4 {[%clk 0:02:57.3]} 11. Bg5 {[%clk 0:02:26.3]}
11... Qxd5 {[%clk 0:02:52.9]} 12. Qxd5 {[%clk 0:02:22.1]} 12... Nxd5 {[%clk
0:02:52.3]} 13. O-O-O {[%clk 0:02:21.6]} 13... Ne7 {[%clk 0:02:38.4]} 14. Bxc4
{[%clk 0:02:06]} 14... Bxc3 {[%clk 0:02:16.6]} 15. bxc3 {[%clk 0:02:04.2]} 15...
Nbc6 {[%clk 0:02:16.9]} 16. Rhe1 {[%clk 0:01:57.9]} 16... O-O {[%clk 0:02:12.2]}
17. Nd4 {[%clk 0:01:56.8]} 17... Bg4 {[%clk 0:02:06.4]} 18. Rd2 {[%clk
0:01:52.4]} 18... Rac8 {[%clk 0:02:04.5]} 19. e6 {[%clk 0:01:45.8]} 19... f6
{[%clk 0:01:51.6]} 20. Be3 {[%clk 0:01:30.3]} 20... Ne5 {[%clk 0:01:40.2]} 21.
Bb3 {[%clk 0:01:17.2]} 21... Rxc3+ {[%clk 0:01:40.1]} 22. Nc2 {[%clk 0:01:17.3]}
22... Nd3+ {[%clk 0:01:37.1]} 0-1

[Event "Early-Titled-Tuesday-Blitz-March-26-2024"]
[Site "Chess.com"]
[Date "2024.03.26"]
[Round "7"]
[White "pfalcon1949"]
[Black "kyuotbi"]
[Result "1-0"]
[WhiteElo "2062"]
[BlackElo "2275"]
[TimeControl "180+1"]
[EndTime "9:12:14 PDT"]
[Termination "pfalcon1949 won by resignation"]

1. e4 {[%clk 0:02:52.8]} 1... e5 {[%clk 0:02:59.4]} 2. Nf3 {[%clk 0:02:48.6]}
2... Nc6 {[%clk 0:02:59.6]} 3. Nc3 {[%clk 0:02:48.5]} 3... Nf6 {[%clk
0:02:56.3]} 4. Nxe5 {[%clk 0:02:47.4]} 4... Nxe5 {[%clk 0:02:50.6]} 5. d4 {[%clk
0:02:47.2]} 5... Nc6 {[%clk 0:02:29.5]} 6. d5 {[%clk 0:02:45.7]} 6... Nb8 {[%clk
0:02:08.7]} 7. e5 {[%clk 0:02:42.7]} 7... Ng8 {[%clk 0:02:05.2]} 8. d6 {[%clk
0:02:40.7]} 8... cxd6 {[%clk 0:02:00.2]} 9. exd6 {[%clk 0:02:41.6]} 9... Qb6
{[%clk 0:01:54.7]} 10. Nb5 {[%clk 0:02:28.4]} 10... Na6 {[%clk 0:01:43.4]} 11.
Be3 {[%clk 0:02:26.4]} 11... Qa5+ {[%clk 0:01:40.2]} 12. c3 {[%clk 0:02:24.8]}
12... Nf6 {[%clk 0:01:26.5]} 13. Bc4 {[%clk 0:02:19.9]} 13... b6 {[%clk
0:00:49.4]} 14. O-O {[%clk 0:02:13.8]} 14... Bb7 {[%clk 0:00:36.6]} 15. Re1
{[%clk 0:02:10.8]} 15... O-O-O {[%clk 0:00:30.4]} 16. b4 {[%clk 0:02:05.8]}
16... Qxb4 {[%clk 0:00:28.5]} 17. cxb4 {[%clk 0:02:06.7]} 1-0

[Event "Early-Titled-Tuesday-Blitz-March-26-2024"]
[Site "Chess.com"]
[Date "2024.03.26"]
[Round "7"]
[White "DenLaz"]
[Black "moro182"]
[Result "1-0"]
[WhiteElo "3088"]
[BlackElo "2892"]
[TimeControl "180+1"]
[EndTime "9:12:17 PDT"]
[Termination "DenLaz won by resignation"]

1. d4 {[%clk 0:03:00.9]} 1... g6 {[%clk 0:03:00.9]} 2. c4 {[%clk 0:03:01.1]}
2... Bg7 {[%clk 0:03:01.5]} 3. Nf3 {[%clk 0:03:01.8]} 3... d6 {[%clk 0:03:02]}
4. g3 {[%clk 0:03:02.5]} 4... Bd7 {[%clk 0:03:02.1]} 5. Bg2 {[%clk 0:03:03]}
5... Qc8 {[%clk 0:03:02.8]} 6. O-O {[%clk 0:03:03.6]} 6... Nc6 {[%clk
0:03:03.1]} 7. Nc3 {[%clk 0:03:03.9]} 7... Bh3 {[%clk 0:03:03]} 8. e4 {[%clk
0:03:03]} 8... h5 {[%clk 0:03:02.6]} 9. Bxh3 {[%clk 0:03:02.9]} 9... Qxh3 {[%clk
0:03:03.5]} 10. d5 {[%clk 0:03:03.5]} 10... Ne5 {[%clk 0:03:03.3]} 11. Ng5
{[%clk 0:03:03]} 11... Qd7 {[%clk 0:03:03.9]} 12. f4 {[%clk 0:03:03.5]} 12...
Ng4 {[%clk 0:03:04.3]} 13. h3 {[%clk 0:02:56.9]} 13... N4h6 {[%clk 0:02:57.8]}
14. Qd3 {[%clk 0:02:56.1]} 14... O-O-O {[%clk 0:02:08.7]} 15. Be3 {[%clk
0:02:53.5]} 15... h4 {[%clk 0:02:05.7]} 16. g4 {[%clk 0:02:45.6]} 16... Kb8
{[%clk 0:01:47.6]} 17. Kh1 {[%clk 0:02:32.8]} 17... a6 {[%clk 0:01:44.1]} 18.
Bf2 {[%clk 0:02:24.3]} 18... Nf6 {[%clk 0:01:41.6]} 19. a4 {[%clk 0:02:20.8]}
19... Nh7 {[%clk 0:01:35.2]} 20. Qe3 {[%clk 0:02:18.9]} 20... c5 {[%clk
0:01:15.8]} 21. dxc6 {[%clk 0:02:16]} 21... Qxc6 {[%clk 0:01:15.7]} 22. Nd5
{[%clk 0:02:16.2]} 22... Rde8 {[%clk 0:00:56.8]} 23. b4 {[%clk 0:02:08.4]} 23...
Bxa1 {[%clk 0:00:53.2]} 24. Qa7+ {[%clk 0:02:07]} 24... Kc8 {[%clk 0:00:51.1]}
25. b5 {[%clk 0:02:07.6]} 1-0

[Event "Early-Titled-Tuesday-Blitz-March-26-2024"]
[Site "Chess.com"]
[Date "2024.03.26"]
[Round "7"]
[White "Cobysters"]
[Black "Szparu"]
[Result "0-1"]
[WhiteElo "2575"]
[BlackElo "2813"]
[TimeControl "180+1"]
[EndTime "9:12:44 PDT"]
[Termination "Szparu won by checkmate"]

1. c4 {[%clk 0:02:58.2]} 1... e6 {[%clk 0:03:00]} 2. Nc3 {[%clk 0:02:58.4]} 2...
d5 {[%clk 0:03:00.5]} 3. d4 {[%clk 0:02:58.7]} 3... c6 {[%clk 0:03:00.5]} 4. Nf3
{[%clk 0:02:58.1]} 4... dxc4 {[%clk 0:02:58.7]} 5. a4 {[%clk 0:02:57.7]} 5...
Bb4 {[%clk 0:02:58.3]} 6. e4 {[%clk 0:02:55.3]} 6... b5 {[%clk 0:02:55.8]} 7.
axb5 {[%clk 0:02:55.5]} 7... cxb5 {[%clk 0:02:56.1]} 8. Bd2 {[%clk 0:02:56.4]}
8... Bxc3 {[%clk 0:02:55.6]} 9. Bxc3 {[%clk 0:02:56.6]} 9... a5 {[%clk
0:02:55.2]} 10. b3 {[%clk 0:02:56.6]} 10... Bb7 {[%clk 0:02:53.1]} 11. d5 {[%clk
0:02:54.2]} 11... Nf6 {[%clk 0:02:50.9]} 12. bxc4 {[%clk 0:02:52]} 12... Nbd7
{[%clk 0:02:12.3]} 13. cxb5 {[%clk 0:02:18.7]} 13... exd5 {[%clk 0:02:08.4]} 14.
exd5 {[%clk 0:02:16.5]} 14... O-O {[%clk 0:02:06.5]} 15. Be2 {[%clk 0:02:15.1]}
15... Nxd5 {[%clk 0:02:05.4]} 16. Bb2 {[%clk 0:02:15.4]} 16... Re8 {[%clk
0:01:55.6]} 17. O-O {[%clk 0:02:14]} 17... Nf4 {[%clk 0:01:46.8]} 18. Bc4 {[%clk
0:02:11.1]} 18... Nb6 {[%clk 0:01:46.8]} 19. Ba2 {[%clk 0:01:59]} 19... Nxg2
{[%clk 0:01:27.5]} 20. Qxd8 {[%clk 0:01:36]} 20... Raxd8 {[%clk 0:01:16]} 21.
Ng5 {[%clk 0:01:03.4]} 21... Nf4 {[%clk 0:01:13.5]} 22. Bxf7+ {[%clk 0:01:01.7]}
22... Kh8 {[%clk 0:01:14]} 23. Bxe8 {[%clk 0:01:01]} 23... Ne2# {[%clk 0:01:13]}
0-1

[Event "Early-Titled-Tuesday-Blitz-March-26-2024"]
[Site "Chess.com"]
[Date "2024.03.26"]
[Round "7"]
[White "Shiner22"]
[Black "LileKoridze"]
[Result "0-1"]
[WhiteElo "2292"]
[BlackElo "2452"]
[TimeControl "180+1"]
[EndTime "9:12:47 PDT"]
[Termination "LileKoridze won by resignation"]

1. e4 {[%clk 0:03:00.9]} 1... c5 {[%clk 0:02:59.6]} 2. d4 {[%clk 0:02:59.5]}
2... cxd4 {[%clk 0:02:55]} 3. c3 {[%clk 0:02:57.4]} 3... dxc3 {[%clk 0:02:55.1]}
4. Nxc3 {[%clk 0:02:58.3]} 4... d6 {[%clk 0:02:54.2]} 5. Bc4 {[%clk 0:02:57.7]}
5... e6 {[%clk 0:02:54.1]} 6. Nf3 {[%clk 0:02:57.8]} 6... Nf6 {[%clk 0:02:50.3]}
7. Qe2 {[%clk 0:02:57.3]} 7... Nc6 {[%clk 0:02:50.3]} 8. O-O {[%clk 0:02:57]}
8... a6 {[%clk 0:02:50.8]} 9. Rd1 {[%clk 0:02:56.3]} 9... Qc7 {[%clk 0:02:51.1]}
10. Bf4 {[%clk 0:02:52.9]} 10... Be7 {[%clk 0:02:50.2]} 11. Rac1 {[%clk
0:02:51]} 11... O-O {[%clk 0:02:49.3]} 12. e5 {[%clk 0:02:42.6]} 12... dxe5
{[%clk 0:02:48]} 13. Nxe5 {[%clk 0:02:42.1]} 13... Nxe5 {[%clk 0:02:47.7]} 14.
Bxe5 {[%clk 0:02:41]} 14... Qa5 {[%clk 0:02:47.7]} 15. Rd3 {[%clk 0:01:28.7]}
15... b5 {[%clk 0:02:41.2]} 16. Bb3 {[%clk 0:01:22.7]} 16... Bb7 {[%clk
0:02:37.8]} 17. Rg3 {[%clk 0:01:11.8]} 17... Kh8 {[%clk 0:02:35.2]} 18. Bc2
{[%clk 0:00:31.1]} 18... Rfd8 {[%clk 0:02:20.4]} 19. Bxh7 {[%clk 0:00:15.7]}
19... Kxh7 {[%clk 0:02:16.1]} 20. Rh3+ {[%clk 0:00:15.6]} 20... Kg8 {[%clk
0:02:16.4]} 21. Bxf6 {[%clk 0:00:15.7]} 21... Bxf6 {[%clk 0:02:15.5]} 22. Qh5
{[%clk 0:00:14.7]} 22... Kf8 {[%clk 0:02:15.9]} 23. Re3 {[%clk 0:00:09.4]} 23...
Rac8 {[%clk 0:02:05.8]} 0-1

[Event "Early-Titled-Tuesday-Blitz-March-26-2024"]
[Site "Chess.com"]
[Date "2024.03.26"]
[Round "7"]
[White "rcmz"]
[Black "stratacticos"]
[Result "1-0"]
[WhiteElo "2210"]
[BlackElo "1860"]
[TimeControl "180+1"]
[EndTime "9:12:47 PDT"]
[Termination "rcmz won by resignation"]

1. b4 {[%clk 0:03:00.9]} 1... e5 {[%clk 0:02:55.3]} 2. Bb2 {[%clk 0:02:58.6]}
2... Bxb4 {[%clk 0:02:54.1]} 3. Bxe5 {[%clk 0:02:57.8]} 3... Nf6 {[%clk
0:02:53.8]} 4. c4 {[%clk 0:02:56]} 4... Nc6 {[%clk 0:02:52.1]} 5. Bb2 {[%clk
0:02:54.8]} 5... O-O {[%clk 0:02:51.5]} 6. e3 {[%clk 0:02:54.8]} 6... Re8 {[%clk
0:02:44.8]} 7. Nf3 {[%clk 0:02:53.8]} 7... d5 {[%clk 0:02:39.2]} 8. cxd5 {[%clk
0:02:54.7]} 8... Nxd5 {[%clk 0:02:33.4]} 9. Be2 {[%clk 0:02:54.9]} 9... Rxe3
{[%clk 0:02:25]} 10. fxe3 {[%clk 0:02:53.7]} 10... Nxe3 {[%clk 0:02:24.7]} 11.
Qb3 {[%clk 0:02:53.1]} 11... Nxg2+ {[%clk 0:02:21.4]} 12. Kd1 {[%clk 0:02:52.7]}
12... Be6 {[%clk 0:02:16.9]} 13. Qd3 {[%clk 0:02:51.5]} 13... Qe7 {[%clk
0:02:04]} 14. Rg1 {[%clk 0:02:49.9]} 14... Nf4 {[%clk 0:01:58.7]} 15. Rxg7+
{[%clk 0:02:43.6]} 15... Kf8 {[%clk 0:01:58.1]} 16. Qxh7 {[%clk 0:02:42.6]}
16... Qd6 {[%clk 0:01:28.7]} 17. Rg8+ {[%clk 0:02:24.2]} 17... Ke7 {[%clk
0:01:27.7]} 18. Qh4+ {[%clk 0:02:21.3]} 18... Kd7 {[%clk 0:01:23.9]} 19. Rxa8
{[%clk 0:02:10]} 19... Nd3 {[%clk 0:00:43]} 20. Bxd3 {[%clk 0:01:40]} 20... Qxd3
{[%clk 0:00:42.3]} 21. Ne5+ {[%clk 0:01:39.4]} 21... Nxe5 {[%clk 0:00:41]} 22.
Rd8+ {[%clk 0:01:39.2]} 1-0

[Event "Early-Titled-Tuesday-Blitz-March-26-2024"]
[Site "Chess.com"]
[Date "2024.03.26"]
[Round "7"]
[White "ChelsieMonica"]
[Black "Agibileg"]
[Result "0-1"]
[WhiteElo "2552"]
[BlackElo "2759"]
[TimeControl "180+1"]
[EndTime "9:12:55 PDT"]
[Termination "Agibileg won by resignation"]

1. e4 {[%clk 0:03:00.9]} 1... c5 {[%clk 0:02:53.5]} 2. Nf3 {[%clk 0:03:00.4]}
2... d6 {[%clk 0:02:53.8]} 3. d4 {[%clk 0:02:59.9]} 3... cxd4 {[%clk 0:02:54.7]}
4. Nxd4 {[%clk 0:03:00.8]} 4... Nf6 {[%clk 0:02:55.3]} 5. Nc3 {[%clk 0:03:01.1]}
5... e5 {[%clk 0:02:56]} 6. Nb3 {[%clk 0:02:58.3]} 6... Be6 {[%clk 0:02:54]} 7.
Be2 {[%clk 0:02:57.8]} 7... Be7 {[%clk 0:02:53.3]} 8. Be3 {[%clk 0:02:58.1]}
8... Nbd7 {[%clk 0:02:52.9]} 9. Qd2 {[%clk 0:02:57.7]} 9... O-O {[%clk 0:02:53]}
10. O-O-O {[%clk 0:02:57.9]} 10... a6 {[%clk 0:02:53.3]} 11. Kb1 {[%clk
0:02:58.1]} 11... Rc8 {[%clk 0:02:53.4]} 12. f3 {[%clk 0:02:57.6]} 12... b5
{[%clk 0:02:48.8]} 13. Nd5 {[%clk 0:02:48.9]} 13... Nxd5 {[%clk 0:02:46.2]} 14.
exd5 {[%clk 0:02:49.8]} 14... Bf5 {[%clk 0:02:46.7]} 15. Bd3 {[%clk 0:02:48.1]}
15... Bxd3 {[%clk 0:02:45.3]} 16. Qxd3 {[%clk 0:02:24.1]} 16... Bg5 {[%clk
0:02:44]} 17. h4 {[%clk 0:02:15.7]} 17... Bxe3 {[%clk 0:02:43.1]} 18. Qxe3
{[%clk 0:02:15.5]} 18... Nb6 {[%clk 0:02:43.7]} 19. Na5 {[%clk 0:02:10.3]} 19...
Qc7 {[%clk 0:02:38]} 20. c3 {[%clk 0:02:02.3]} 20... Nc4 {[%clk 0:02:35.8]} 21.
Nxc4 {[%clk 0:02:00.2]} 21... Qxc4 {[%clk 0:02:36.7]} 22. h5 {[%clk 0:01:52.1]}
22... b4 {[%clk 0:02:29.6]} 23. cxb4 {[%clk 0:01:52.2]} 23... Qxb4 {[%clk
0:02:30.3]} 24. h6 {[%clk 0:01:51.9]} 24... g6 {[%clk 0:02:29.8]} 25. a3 {[%clk
0:01:47.2]} 25... Qb5 {[%clk 0:02:27]} 26. Rd2 {[%clk 0:01:43.2]} 26... Rc5
{[%clk 0:02:25]} 27. Rhd1 {[%clk 0:01:43]} 27... f6 {[%clk 0:02:18]} 28. f4
{[%clk 0:01:42.2]} 28... Rc4 {[%clk 0:02:07.3]} 29. fxe5 {[%clk 0:01:41.4]}
29... fxe5 {[%clk 0:02:08.2]} 30. Qg5 {[%clk 0:01:38.2]} 30... Qd7 {[%clk
0:01:57]} 31. Ka2 {[%clk 0:01:28.6]} 31... a5 {[%clk 0:01:49.2]} 32. Rd3 {[%clk
0:01:25.6]} 32... Rg4 {[%clk 0:01:47]} 33. Qd2 {[%clk 0:01:24.3]} 33... a4
{[%clk 0:01:44.3]} 34. Rc1 {[%clk 0:01:22.7]} 34... Rgf4 {[%clk 0:01:34.4]} 35.
Qb4 {[%clk 0:01:19]} 35... Rxb4 {[%clk 0:01:33.5]} 0-1

[Event "Early-Titled-Tuesday-Blitz-March-26-2024"]
[Site "Chess.com"]
[Date "2024.03.26"]
[Round "7"]
[White "ContrVersia"]
[Black "babyking1205"]
[Result "1-0"]
[WhiteElo "2914"]
[BlackElo "2636"]
[TimeControl "180+1"]
[EndTime "9:12:58 PDT"]
[Termination "ContrVersia won by resignation"]

1. Nf3 {[%clk 0:02:56.6]} 1... c5 {[%clk 0:03:00]} 2. e4 {[%clk 0:02:56.7]} 2...
d6 {[%clk 0:02:59.7]} 3. d4 {[%clk 0:02:56.7]} 3... cxd4 {[%clk 0:02:53.7]} 4.
Nxd4 {[%clk 0:02:57.6]} 4... Nf6 {[%clk 0:02:53.4]} 5. Nc3 {[%clk 0:02:57.9]}
5... a6 {[%clk 0:02:54]} 6. h3 {[%clk 0:02:57.4]} 6... e5 {[%clk 0:02:52.3]} 7.
Nf3 {[%clk 0:02:57.4]} 7... Be7 {[%clk 0:02:52.4]} 8. Bc4 {[%clk 0:02:57.2]}
8... b5 {[%clk 0:02:48.5]} 9. Bb3 {[%clk 0:02:56.4]} 9... Be6 {[%clk 0:02:48.8]}
10. O-O {[%clk 0:02:49.3]} 10... h6 {[%clk 0:02:43.1]} 11. Re1 {[%clk
0:02:47.3]} 11... O-O {[%clk 0:02:42.9]} 12. Nh2 {[%clk 0:02:47.5]} 12... Nbd7
{[%clk 0:02:35.3]} 13. Be3 {[%clk 0:02:44.2]} 13... Rc8 {[%clk 0:02:34.2]} 14.
Ng4 {[%clk 0:02:43.2]} 14... Nxg4 {[%clk 0:02:32.9]} 15. hxg4 {[%clk 0:02:43]}
15... Nb6 {[%clk 0:02:27.2]} 16. Bxb6 {[%clk 0:02:35.5]} 16... Qxb6 {[%clk
0:02:27]} 17. Nd5 {[%clk 0:02:36.4]} 17... Bxd5 {[%clk 0:02:25.1]} 18. Qxd5
{[%clk 0:02:36.4]} 18... Bh4 {[%clk 0:02:21]} 19. Re2 {[%clk 0:02:33.2]} 19...
Rc5 {[%clk 0:02:20.8]} 20. Qd3 {[%clk 0:02:32.4]} 20... Bg5 {[%clk 0:02:16.7]}
21. Rd1 {[%clk 0:02:31]} 21... Rc6 {[%clk 0:02:15.7]} 22. g3 {[%clk 0:02:29.4]}
22... a5 {[%clk 0:02:11.5]} 23. c3 {[%clk 0:02:29.2]} 23... a4 {[%clk
0:02:10.5]} 24. Bd5 {[%clk 0:02:28.8]} 24... Rc7 {[%clk 0:02:09.1]} 25. a3
{[%clk 0:02:26]} 25... Be7 {[%clk 0:02:03.3]} 26. Kg2 {[%clk 0:02:25.1]} 26...
Kh7 {[%clk 0:02:03.4]} 27. Rh1 {[%clk 0:02:24.4]} 27... Bg5 {[%clk 0:01:49.9]}
28. Ree1 {[%clk 0:02:18.8]} 28... g6 {[%clk 0:01:48.8]} 29. Ref1 {[%clk
0:02:18.3]} 29... Kg7 {[%clk 0:01:47.5]} 30. f4 {[%clk 0:02:17.4]} 30... Bf6
{[%clk 0:01:47.8]} 31. Rh3 {[%clk 0:02:15.4]} 31... g5 {[%clk 0:01:47.5]} 32.
Rfh1 {[%clk 0:02:09.6]} 32... Rh8 {[%clk 0:01:46.9]} 33. Qf3 {[%clk 0:01:57.3]}
33... Qb8 {[%clk 0:01:38.2]} 34. Rh5 {[%clk 0:01:54.9]} 34... Qc8 {[%clk
0:01:29.4]} 35. Rf1 {[%clk 0:01:48.2]} 35... b4 {[%clk 0:01:27.1]} 36. fxg5
{[%clk 0:01:40.1]} 36... Bxg5 {[%clk 0:01:25.4]} 37. Rxg5+ {[%clk 0:01:35.6]}
37... Kf8 {[%clk 0:01:13.4]} 38. Rf5 {[%clk 0:01:32.6]} 38... Rh7 {[%clk
0:01:13.2]} 39. Bxf7 {[%clk 0:01:30]} 1-0

[Event "Early-Titled-Tuesday-Blitz-March-26-2024"]
[Site "Chess.com"]
[Date "2024.03.26"]
[Round "7"]
[White "Witik"]
[Black "GiorgianBarbosa"]
[Result "1-0"]
[WhiteElo "2739"]
[BlackElo "2510"]
[TimeControl "180+1"]
[EndTime "9:13:04 PDT"]
[Termination "Witik won by checkmate"]

1. e4 {[%clk 0:02:59.8]} 1... c5 {[%clk 0:02:59.8]} 2. Nf3 {[%clk 0:02:59.8]}
2... g6 {[%clk 0:03:00.1]} 3. c3 {[%clk 0:02:59.1]} 3... Bg7 {[%clk 0:02:58.8]}
4. d4 {[%clk 0:02:58.6]} 4... cxd4 {[%clk 0:02:58.1]} 5. cxd4 {[%clk 0:02:59.5]}
5... d5 {[%clk 0:02:55.1]} 6. e5 {[%clk 0:02:59.4]} 6... Bg4 {[%clk 0:02:52.6]}
7. Nc3 {[%clk 0:02:57.7]} 7... e6 {[%clk 0:02:47.9]} 8. Qa4+ {[%clk 0:02:46.9]}
8... Nc6 {[%clk 0:02:47.2]} 9. Nb5 {[%clk 0:02:43.3]} 9... Bxf3 {[%clk
0:02:44.5]} 10. Nd6+ {[%clk 0:02:28.3]} 10... Kf8 {[%clk 0:02:37.4]} 11. gxf3
{[%clk 0:02:28.3]} 11... Qb6 {[%clk 0:02:33.7]} 12. Nb5 {[%clk 0:02:00]} 12...
a6 {[%clk 0:02:28.6]} 13. Be3 {[%clk 0:01:49.1]} 13... Nge7 {[%clk 0:02:24.9]}
14. Bd3 {[%clk 0:01:32.2]} 14... h5 {[%clk 0:01:54.7]} 15. Rc1 {[%clk
0:01:22.2]} 15... Bh6 {[%clk 0:01:50]} 16. O-O {[%clk 0:01:22.2]} 16... Bxe3
{[%clk 0:01:46.5]} 17. fxe3 {[%clk 0:01:22.5]} 17... Nxe5 {[%clk 0:01:42.3]} 18.
dxe5 {[%clk 0:00:55.9]} 18... Qxe3+ {[%clk 0:01:40.1]} 19. Kh1 {[%clk
0:00:56.5]} 19... Qxd3 {[%clk 0:01:39.3]} 20. Nd6 {[%clk 0:00:56.8]} 20... b5
{[%clk 0:01:23.2]} 21. Qh4 {[%clk 0:00:52.9]} 21... Nf5 {[%clk 0:01:13.8]} 22.
Qf6 {[%clk 0:00:51.9]} 22... Rg8 {[%clk 0:01:14]} 23. Qxf7# {[%clk 0:00:47.4]}
1-0